Cogmind - Beta 15 @@@ ROGUE MODE // 2025.05.16 @ 16:23:13 Player: Natsuram Result: Destroyed by CE-A1J(R) with Subdweller Machine Gun Performance ------------- Evolutions (0) 0 Regions Visited (3) 600 Robots Destroyed (25) 125 Value Destroyed (461) 461 Prototype IDs (0) 0 Alien Tech Used (0) 0 Bonus (0) 0 TOTAL SCORE: 1186 Bonus ------- None Cogmind --------- Core Integrity 0/250 Matter 285/300 Energy 239/250 System Corruption 0% Temperature Cool (0) Movement Walking (120) Location -10/Subcaves Parts ------- > --- POWER (1) -------- Ion Engine > --- PROPULSION (2) --- Aluminum Leg Aluminum Leg > --- UTILITY (2) ------ Medium Storage Unit Seismic Detector > --- WEAPON (2) ------- Particle Gun Light Assault Rifle > --- INVENTORY (10) --- Light Ion Engine Subdweller Power Source Aluminum Leg Improved Heat Sink Makeshift Light Armor Plating EM Pulse Gun Light Assault Rifle Light Assault Rifle Mining Laser Flamer Peak State ------------ > --- POWER ------------ Light Ion Engine > --- PROPULSION ------- Aluminum Leg Aluminum Leg > --- UTILITY ---------- Medium Storage Unit Seismic Detector > --- WEAPON ----------- Particle Gun Light Assault Rifle > --- INVENTORY -------- Aluminum Leg Aluminum Leg Flight Unit Improved Heat Sink Sensor Array EM Pulse Gun Light Assault Rifle Mining Laser [Rating: 9] Favorites ----------- Power Light Ion Engine Engine Light Ion Engine Propulsion Aluminum Leg Leg Aluminum Leg Utility Medium Storage Unit Device Seismic Detector Storage Medium Storage Unit Weapon Light Assault Rifle Energy Gun Particle Gun Ballistic Gun Light Assault Rifle Special Weapon Mining Laser Build | -11 -10 -10 -10 ------- Run | Yrd Mat Min Sub Slots Evolved . | . . . . Power . | . . . . Propulsion . | . . . . Utility . | . . . . Weapon . | . . . . Parts Attached 22 | 6 5 8 3 Power 4 | 1 1 2 . Engine 4 | 1 1 2 . Core . | . . . . Reactor . | . . . . Propulsion 5 | 2 . 2 1 Treads . | . . . . Leg 5 | 2 . 2 1 Wheel . | . . . . Hover . | . . . . Flight . | . . . . Utility 4 | 1 3 . . Device 2 | . 2 . . Storage 2 | 1 1 . . Processor . | . . . . Hackware . | . . . . Protection . | . . . . Artifact . | . . . . Weapon 9 | 2 1 4 2 Energy Gun 4 | 1 1 1 1 Energy Cannon . | . . . . Ballistic Gun 3 | 1 . 2 . Ballistic Cannon . | . . . . Launcher . | . . . . Special Weapon 2 | . . 1 1 Impact Weapon . | . . . . Slashing Weapon . | . . . . Piercing Weapon . | . . . . Special Melee Weapon . | . . . . Unidentified Prototypes . | . . . . Parts Lost 2 | . . 2 . Power . | . . . . Propulsion . | . . . . Utility . | . . . . Weapon 2 | . . 2 . Highest Loss Streak 1 | . . 1 . To Critical Strikes . | . . . . Average Backups 6 | 1 5 7 9 Power . | . . . 1 Propulsion 1 | . 1 2 1 Utility 1 | . . 1 1 Weapon 3 | . 2 3 4 Tool/Special . | . . . . Unused Backups 9 | . 2 . 7 Power 2 | . . . 2 Propulsion 3 | . 2 . 1 Utility 2 | . . . 2 Weapon 2 | . . . 2 Tool/Special . | . . . . Average Slot Usage (%) 99 | . 97 99 100 Engine 13 | . 13 14 14 Leg 28 | . 28 28 28 Device 13 | . 12 14 14 Storage 14 | . 14 14 14 Energy Gun 9 | . 14 8 9 Ballistic Gun 16 | . 14 18 14 Special Weapon 1 | . . . 4 Peak Build Rating 9 | 6 9 8 9 Average Rating 7 | 5 7 7 8 On Entrance 5 | . 6 8 8 Naked Turns . | . . . . Heaviest Build 20 | 11 18 19 20 Greatest Support 20 | 20 20 20 20 Greatest Overweight (x) . | . . . . Average Overweight (x) . | . . . . Largest Inventory Capacity 10 | 8 10 10 10 Average Capacity 9 | 7 9 10 10 Most Carried 10 | 2 10 9 10 Average Carried 6 | 1 5 7 9 Final Capacity 10 | 8 10 10 10 Final Carried 10 | 2 6 8 10 Class Distribution -------------------- 85% | Mutant 14% | Scavenger-Mutant Dominant Class ---------------- Mutant | -10/Materials Mutant | -10/Mines Scavenger-Mutant | -10/Subcaves Resources | -11 -10 -10 -10 ----------- Run | Yrd Mat Min Sub Matter Collected 431 | 215 . 185 31 Remotely . | . . . . Salvage Created 739 | 99 160 347 133 Parts 45 | 4 12 22 7 Haulers Intercepted . | . . . . Recyclers Shooed 1 | . 1 . . Parts Field Recycled . | . . . . Retrieved Matter . | . . . . Parts Self-Destructed 7 | . . . 7 Prevented 2 | . . . 2 Kills | -11 -10 -10 -10 ------- Run | Yrd Mat Min Sub Combat Hostiles Destroyed 18 | . 3 13 2 Guns 17 | . 3 12 2 Cannons 1 | . . 1 . Classes Destroyed 7 | 2 3 1 1 Worker 3 | 2 . 1 . Tunneler 2 | . 1 1 . Recycler 1 | 1 . . . Watcher 1 | . 1 . . Swarmer 10 | . . 9 1 Grunt 7 | . 3 4 . Sentry 1 | . . . 1 Best Kill Streak 4 | 3 3 4 1 Combat Bots Only 3 | . 2 3 1 Max Kills in Single Turn 2 | 1 1 2 1 Gunslinging . | . . . . Exploded . | . . . . Melee . | . . . . Uniques/NPCs Destroyed . | . . . . Combat | -11 -10 -10 -10 -------- Run | Yrd Mat Min Sub Hostile Shots Fired 109 | . 26 72 11 Missed 41 | . 11 26 4 Hits 68 | . 15 46 7 Projectile 68 | . 15 46 7 Critical Strikes 3 | . . 3 . Damage Taken 867 | . 223 494 150 Core 258 | . 65 125 68 Absorbed by Shields . | . . . . Core Remaining (%) 100 | 100 . . . Volleys Fired 97 | 17 23 38 19 Largest 2 | 2 2 2 2 Hottest 120 | 70 85 120 100 Shots Fired 189 | 34 45 75 35 Gun 183 | 34 45 72 32 Cannon . | . . . . Launcher . | . . . . Special 6 | . . 3 3 Kinetic 112 | 17 22 57 16 Thermal 54 | 17 23 8 6 Explosive . | . . . . Electromagnetic 23 | . . 10 13 Robot Hit Streak 19 | 4 6 4 19 Robot Miss Streak 5 | 3 4 5 1 Penetration Max . | . . . . Secondary Targets 3 | . 1 2 . Max Gunslinging Chain 1 | . 1 1 . Shots Hit Robots 93 | 16 25 35 17 Core Hits 45 | 5 13 21 6 Critical Kills . | . . . . Critical Parts Destroyed 1 | . . 1 . Critical Strikes 2 | . 1 1 . Burn 1 | . 1 . . Destroy 1 | . . 1 . Melee Attacks . | . . . . Impact . | . . . . Slashing . | . . . . Piercing . | . . . . Sneak Attacks . | . . . . Combat Hostiles . | . . . . Follow-up Attacks . | . . . . Damage Inflicted 1100 | 182 311 452 155 Guns 1063 | 179 301 428 155 Cannons . | . . . . Explosions . | . . . . Melee . | . . . . Ramming 13 | 3 10 . . Kinetic 517 | 69 88 291 69 Thermal 396 | 110 213 73 . Explosive . | . . . . Electromagnetic 174 | . . 88 86 Impact . | . . . . Slashing . | . . . . Piercing . | . . . . Highest Corruption . | . . . . Average Corruption . | . . . . Corruption Purged . | . . . . Corruption Blocked . | . . . . Overload Shots . | . . . . Overflow Damage 11 | . . 11 . Projectiles 11 | . . 11 . Explosions . | . . . . Melee . | . . . . Knockbacks . | . . . . Impact . | . . . . Kinetic . | . . . . Secondary . | . . . . Self-Inflicted Damage . | . . . . Shots . | . . . . Rammed . | . . . . Targets Rammed 2 | 1 1 . . Kicked 2 | 1 1 . . Crushed . | . . . . Highest Temperature 262 | 140 262 160 4 Average Temperature 77 | 53 113 58 3 Received Heat Transfer 336 | . 102 225 9 Effects 2 | . 2 . . Interference 2 | . 2 . . Siege Activations . | . . . . Martial Activations . | . . . . Shielding Activations . | . . . . Robots Disrupted . | . . . . Combat Hostiles . | . . . . Robots Corrupted . | . . . . Combat Hostiles . | . . . . Parts Fried . | . . . . Impact Corruptions . | . . . . Robots Melted . | . . . . Combat Hostiles . | . . . . Parts Melted . | . . . . Heat Transferred 1160 | 333 666 161 . Parts Sabotaged . | . . . . Parts Stolen . | . . . . Parts Stripped . | . . . . Power Chain Reactions . | . . . . Alert | -11 -10 -10 -10 ------- Run | Yrd Mat Min Sub Maximum Alert Level . | . . . . Low Security (%) 100 | 100 100 100 . Level 1 . | . . . . Level 2 . | . . . . Level 3 . | . . . . Level 4 . | . . . . Level 5 . | . . . . High Security . | . . . . Max Security . | . . . . Peak Influence 137 | 5 62 137 . Initial 5 | . . 5 . Average 48 | . 20 67 . Influence Increases 546 | 15 124 367 40 Destroy 0b10 Robot/C 360 | . 60 260 40 Destroy 0b10 Robot/NC 35 | 15 10 10 . Destroy Leader 72 | . 22 50 . Successful Hack 1 | . 1 . . Destroy Structure 3 | . 1 2 . Lose Combat Pursuer 75 | . 30 45 . Influence Decreases 546 | 15 110 337 84 Entered New Map 33 | . . 9 24 Time Decay 493 | 15 110 308 60 Lost Part 20 | . . 20 . Squads Dispatched 1 | . 1 . . Investigation 1 | . 1 . . Extermination . | . . . . Reinforcement . | . . . . Assault . | . . . . Garrison . | . . . . Intercept . | . . . . Searches Triggered . | . . . . Construction Impeded . | . . . . Haulers Reinforced . | . . . . Active Scanning Responses . | . . . . Cargo Convoy Interrupts . | . . . . Stealth | -11 -10 -10 -10 --------- Run | Yrd Mat Min Sub Distress Signals 2 | . 2 . . Communications Jammed . | . . . . Distress Signals . | . . . . Times Spotted 27 | . 8 15 4 Peak Tracking Total 3 | . 3 3 2 Tactical Retreats 3 | . 1 2 . Traps | -11 -10 -10 -10 ------- Run | Yrd Mat Min Sub Traps Triggered 2 | . 1 . 1 Indirectly . | . . . . Trap Hack Attempts . | . . . . Triggered . | . . . . Disarmed . | . . . . Reprogrammed . | . . . . Reused . | . . . . Traps Extracted . | . . . . Installed . | . . . . Triggered . | . . . . Machines | -11 -10 -10 -10 ---------- Run | Yrd Mat Min Sub Machines Disabled . | . . . . Max in Single Turn . | . . . . Machines Repaired . | . . . . Machines Dismantled . | . . . . Machines Sabotaged . | . . . . Overloaded Fab Kills . | . . . . Hacking | -11 -10 -10 -10 --------- Run | Yrd Mat Min Sub Machines Accessed 1 | . 1 . . Terminals . | . . . . Fabricators . | . . . . Repair Stations . | . . . . Recycling Units 1 | . 1 . . Scanalyzers . | . . . . Garrison Access . | . . . . Total Hacks 5 | . 5 . . Successful 5 | . 5 . . Failed . | . . . . Catastrophic . | . . . . Database Lockouts . | . . . . Manual . | . . . . Terminals . | . . . . Fabricators . | . . . . Repair Stations . | . . . . Recycling Units 5 | . 5 . . Scanalyzers . | . . . . Garrison Access . | . . . . Terminal Hacks . | . . . . Fabricator Hacks . | . . . . Repair Station Hacks . | . . . . Recycling Unit Hacks 5 | . 5 . . Recycle Component 2 | . 2 . . Process 1 | . 1 . . Retrieve Matter 1 | . 1 . . Retrieve Components 1 | . 1 . . Scanalyzer . | . . . . Garrison Access Hacks . | . . . . Unauthorized Hacks . | . . . . Terminals . | . . . . Fabricators . | . . . . Repair Stations . | . . . . Recycling Units . | . . . . Scanalyzers . | . . . . Garrison Access . | . . . . Data Cores Recovered . | . . . . Used . | . . . . Hacking Detections 1 | . 1 . . Full Trace Events 1 | . 1 . . Feedback Events . | . . . . Feedback Blocked . | . . . . Robot Schematics Acquired . | . . . . Robots Built . | . . . . Authchips . | . . . . Time . | . . . . Total Robot Build Rating . | . . . . Part Schematics Acquired . | . . . . Parts Built . | . . . . Authchips . | . . . . Time . | . . . . Total Part Build Rating . | . . . . Parts Repaired . | . . . . Time . | . . . . Parts Recycled 2 | . 2 . . Recycled Matter 130 | . 130 . . Retrieved Matter 130 | . 130 . . Retrieved Components . | . . . . Parts Scanalyzed . | . . . . Part Schematics Acquired . | . . . . Parts Damaged . | . . . . Bothacking | -11 -10 -10 -10 ------------ Run | Yrd Mat Min Sub Used RIF Installer . | . . . . Robots Hacked . | . . . . Non-combat . | . . . . Combat . | . . . . Robot Hacks Applied . | . . . . Relay Couplers Released . | . . . . Fabnet Peak Effective % . | . . . . Robots Rewired . | . . . . Allies Hacked . | . . . . Hacks Repelled . | . . . . Allies | -11 -10 -10 -10 -------- Run | Yrd Mat Min Sub Total Allies . | . . . . Largest Group . | . . . . Highest-Rated Group . | . . . . Highest-Rated Ally . | . . . . Total Orders . | . . . . Ally Attacks . | . . . . Total Damage . | . . . . Kills . | . . . . Allies Corrupted . | . . . . Allies Melted . | . . . . Intel | -11 -10 -10 -10 ------- Run | Yrd Mat Min Sub Active Infowar (turns) 1545 | . 274 843 428 Sensors 94 | . 94 . . Seismic 1451 | . 180 843 428 Robot Analysis Total . | . . . . Derelict Logs Recovered 3 | . . 2 1 Drone Launches . | . . . . Drone Recoveries . | . . . . Exploration | -11 -10 -10 -10 ------------- Run | Yrd Mat Min Sub Turns Passed 1751 | 144 336 843 428 Spaces Moved 1171 | 72 204 594 301 Core 2 | 2 . . . Treads . | . . . . Legs 1169 | 70 204 594 301 Wheels . | . . . . Hover . | . . . . Flight . | . . . . Fastest Speed 50 | 50 120 120 120 Average Speed 119 | 118 120 120 120 Slowest Speed 120 | 120 120 120 120 Overloaded Moves . | . . . . Propulsion Burnouts . | . . . . Robots Hopped . | . . . . Potential Cave-ins . | . . . . Cave-ins Triggered . | . . . . Exploration Rate (%) 43 | 6 36 99 34 Regions Visited 3 Branch Regions 2 Pre-discovered Areas 4 | . . 2 2 Known Exits Taken . | . . . . Unknown Exits Taken 3 | 1 1 1 . Scrap Searched 2 | . . 2 . Spaces Dug 1 | . . 1 . Terrain Destroyed 2 | . . 2 . Melee . | . . . . Projectile 2 | . . 2 . AOE . | . . . . Terrain Rammed . | . . . . Walls Destroyed . | . . . . Machines Disabled . | . . . . Actions | -11 -10 -10 -10 --------- Run | Yrd Mat Min Sub Total 1335 | 97 256 648 334 Wait 10 | . 10 . . Move 1168 | 71 203 593 301 Hop . | . . . . Pick Up 19 | 2 8 4 5 Fast Attach 9 | 6 2 1 . Attach 5 | . 2 1 2 Detach 4 | . 2 . 2 Swap 8 | . 1 6 1 Drop 12 | . 4 5 3 Fire 97 | 17 23 38 19 Melee . | . . . . Ram . | . . . . Kick 2 | 1 1 . . Crush . | . . . . Escape Stasis . | . . . . Rewire 1 | . . . 1 Trap . | . . . . Miscellaneous . | . . . . Route ------- -11/Scrapyard -10/Materials (discovered 2 exits: [*Mat] / [*Min]) -10/Mines (discovered 3 exits: [*Mat x2] / [*Sub]) -10/Subcaves History --------- Turn | Location | Event 23 | -11/Scrapyard | Discovered new exit (range 13) 145 | -11/Scrapyard | Entered Materials 308 | -10/Materials | Build established: Mutant 367 | -10/Materials | Discovered new exit (range 13) 448 | -10/Materials | Discovered new exit (range 16) 481 | -10/Materials | Entered Mines 749 | -10/Mines | Discovered new exit (range 8) 836 | -10/Mines | Core integrity fell below 50% 872 | -10/Mines | Learned location of Zion (-7) 970 | -10/Mines | Discovered new exit (range 11) 1078 | -10/Mines | Discovered new exit (range 8) 1324 | -10/Mines | Entered Subcaves 1349 | -10/Subcaves | Core integrity fell below 20% 1472 | -10/Subcaves | Shifting Twisted Machinery released Mak. Light Armor Plating 1501 | -10/Subcaves | Shifting Twisted Machinery released Flamer 1503 | -10/Subcaves | Shifting Twisted Machinery released Spk. Treads 1556 | -10/Subcaves | Learned location of Recycling (-8) 1590 | -10/Subcaves | Met a Zionite searching for "candidates" 1752 | -10/Subcaves | Destroyed by CE-A1J(R) with Subdweller Machine Gun Last Messages --------------- Spk. Treads falls loose from the Twisted Machinery. 01542_ Acquired Flamer. 01554_ 45-BIZ(z): "She is not going to be happy we haven't found any suitable candidates yet." 01556_ Acquired derelict log, extracted data. World map updated: -8/Recycling. 01563_ Acquired 13 matter. 01590_ 45-BIZ(z): "Hey you! It's really dangerous down here, I feel that you could die at any moment. For your health and safety might I suggest a trip to Zion?" World map confirmed: -7/Zion. 01637_ Triggered Shrapnel Trap. 01637_ An expanding cloud of shrapnel blasts out in all directions. 01660_ S-10 Pest destroyed. 01668_ Lgt. Ion Engine fries itself beyond repair. 01669_ Subatomizers dissect the Wheel. Map ----- +----------------------------------------------------+ | ????????????? ## #???????????????????? | | ??????????????# #### ##???????????????????? | | ???????????????# ??## #????????????????????? | | ????????????????# #??# #????????????????????? | | ?????????????????# ?## ###???????????????????? | | ???????????????????# ## ## ##??????????????????? | | ????????? ???????# ##?????????????????? | | ????????? ??????# #?????????????????? | | ?????????# #????# #?????????????????? | | ?????????# #???# ##?????????????????? | | ????????## ??# #??????????????????? | | ??????? #?# ## #??????????????????? | | ??????? ## ?# #??????????????????? | | ??????# ?## #??????????????????? | | ????????# ### ##??????????????????? | | ?????????# ##???????????????????? | | ?????????# ### ##????????????????????? | | ??????????????? ???# ###???????????????????? | | ???????????????????# R ##??????????????????? | | ???????????????????# #??????????????????? | | ???????????????????# ## ##?????????????????? | | ???????????????????#### #?????????????????? | | ?????????????????????# #?????????????????? | | ?????????????????????# #?????????????????? | | ?????????????????????### #?????????????????? | | ???????????????????????##@ ##?????????????????? | | ????????????????????????# ##??????????????????? | | ????????????????????????# #???????????????????? | | ????????????????????????# #???????????????????? | | ????????????????????????# ##???????????????????? | | ????????????????????????# #????????????????????? | | ????????????????????????# #????????????????????? | | ????????????????????????## ##????????????????????? | | ??????????????????????????##?????????????????????? | | ?????????????????????????????????????????????????? | | ?????????????????????????????????????????????????? | | ?????????????????????????????????????????????????? | | ?????????????????????????????????????????????????? | | ?????????????????????????????????????????????????? | | ?????????????????????????????????????????????????? | | ?????????????????????????????????????????????????? | | ?????????????????????????????????????????????????? | | ?????????????????????????????????????????????????? | | ?????????????????????????????????????????????????? | | ?????????????????????????????????????????????????? | | ?????????????????????????????????????????????????? | | ?????????????????????????????????????????????????? | | ?????????????????????????????????????????????????? | | ?????????????????????????????????????????????????? | | ?????????????????????????????????????????????????? | +----------------------------------------------------+ Best States ------------- Heat Dissipation 25 Energy Generation 10 Energy Capacity 250 Matter Stores 300 Matter Capacity 300 Sight Range 16 Robot Scan Range 14 Terrain Scan Density 10 Evasion (%) 55 Item Schematics ----------------- None Robot Schematics ------------------ None Fabricated ------------ Nothing Repaired ---------- Nothing Alien Tech Used ----------------- None Achievements -------------- None Challenges ------------ None Game ------ Seed AssemblyLinearMinigun Manual? 0 Play Time 00:24:56 Cumulative 4.4 hours Start 2025.05.16 @ 16:00:41 End 2025.05.16 @ 16:23:13 Sessions 1 Manual Loads 0 Difficulty Rogue Special Mode None Game No. 5 Rogue 4 Adventurer 1 Explorer 0 Win Type - Total 0 Types 0/0/0/0/0/0/0/0/0/0 Lore% 5 Gallery% 6 Achievement% 9 Wizard Run 0 Options --------- Layout 1 ASCII 0 Keyboard 1 Movement Numpad Keybinds 0 Fullscreen 1 Font 24/Smallcaps Map View 50x35 Zoom Use 0% Tactical HUD 1 Map Filters NONE Filters NONE Steam 1 RUN: 87f1639c-af58-4fcf-a9f4-7347675d03c8